[Event "44th Chess Olympiad Women 2022"]
[Site "Chennai"]
[Date "2022.08.08"]
[Round "10.3"]
[White "Wagner, Dinara"]
[Black "Ushenina, Anna"]
[Result "0-1"]
[WhiteElo "2341"]
[BlackElo "2423"]
[Annotator "RC"]
[PlyCount "73"]
[EventDate "2022.??.??"]
[TimeControl "60"]

1. Nf3 {[%emt 0:00:11]} d5 {[%emt 0:00:22]} 2. e3 {[%emt 0:00:05]} Nf6 {
[%emt 0:15:03]} 3. c4 {[%emt 0:00:18]} c6 {[%emt 0:11:13]} 4. d4 {[%emt 0:00:
00]} g6 {[%emt 0:02:13]} 5. Nc3 {[%emt 0:00:38]} Bg7 {[%emt 0:00:05]} 6. Be2 {
[%emt 0:00:04]} O-O {[%emt 0:00:11]} 7. O-O {[%emt 0:00:22]} b6 {[%emt 0:08:33]
} 8. cxd5 {[%emt 0:15:29]} Nxd5 {[%emt 0:11:00]} 9. e4 {[%emt 0:01:16]} Nxc3 {
[%emt 0:02:59]} 10. bxc3 {[%emt 0:00:05]} c5 {[%emt 0:00:06]} 11. Be3 {[%emt 0:
00:00]} Bb7 {[%emt 0:06:32]} 12. e5 {[%emt 0:02:08]} cxd4 {[%emt 0:08:25]} 13.
cxd4 {[%emt 0:02:42]} Na6 {[%emt 0:04:45]} 14. Qd2 {[%emt 0:07:49]} Nc7 {
[%emt 0:00:43]} 15. Bh6 {[%emt 0:03:38]} Qd7 {[%emt 0:04:21]} 16. Rfe1 {
[%emt 0:20:35]} Rac8 {[%emt 0:04:44]} 17. Rab1 {[%emt 0:10:58]} Ne6 {[%emt 0:
00:00]} 18. Be3 {[%emt 0:02:10]} Rfd8 {[%emt 0:01:15]} 19. Red1 {[%emt 0:00:24]
} Nc7 {[%emt 0:06:11]} 20. Rb3 {[%emt 0:02:01]} Bd5 {[%emt 0:00:47]} 21. Rb2 {
[%emt 0:00:51]} Ne6 {[%emt 0:00:17]} 22. h4 {[%emt 0:00:43]} Qc6 {[%emt 0:00:
00]} 23. Ba6 {[%emt 0:09:45]} Rc7 {[%emt 0:00:13]} 24. Qe2 {[%emt 0:00:22]} Qc3
{[%emt 0:03:40]} 25. Rbd2 {[%emt 0:00:57]} Qa5 {[%emt 0:00:28]} 26. h5 {
[%emt 0:01:24]} Rc3 {[%emt 0:01:36]} 27. Bd3 {[%emt 0:02:50]} Qa3 {[%emt 0:00:
00]} 28. Ne1 {[%emt 0:02:23]} Rdc8 {[%emt 0:01:08]} 29. Nc2 {[%emt 0:01:14]}
Qa5 {[%emt 0:00:54]} 30. a3 {[%emt 0:00:34]} Bb3 {[%emt 0:00:42]} 31. d5 {
[%emt 0:00:43]} Nc5 {[%emt 0:00:12]} 32. hxg6 {[%emt 0:00:30]} hxg6 {[%emt 0:
00:00]} 33. Bxc5 {[%emt 0:00:30]} Qxc5 {[%emt 0:00:10]} 34. e6 {[%emt 0:00:18]}
Bxc2 {[%emt 0:01:32]} 35. Qf3 {[%emt 0:00:44]} fxe6 {[%emt 0:00:36]} 36. dxe6 {
[%emt 0:00:29]} Rf8 {[%emt 0:00:07]} 37. Qg3 {[%emt 0:00:00]} 0-1

[Event "44th Chess Olympiad Women 2022"]
[Site "Chennai"]
[Date "2022.08.08"]
[Round "10.4"]
[White "Balajayeva, Khanim"]
[Black "Mkrtchian, Lilit"]
[Result "1-0"]
[WhiteElo "2344"]
[BlackElo "2362"]
[Annotator "RC"]
[PlyCount "135"]
[EventDate "2022.??.??"]
[TimeControl "60"]

1. e4 {[%emt 0:00:02]} c6 {[%emt 0:00:25]} 2. d4 {[%emt 0:00:09]} d5 {[%emt 0:
00:00]} 3. exd5 {[%emt 0:00:13]} cxd5 {[%emt 0:00:09]} 4. Bd3 {[%emt 0:00:06]}
Nf6 {[%emt 0:01:03]} 5. h3 {[%emt 0:01:11]} Nc6 {[%emt 0:00:28]} 6. c3 {
[%emt 0:01:02]} e5 {[%emt 0:03:58]} 7. dxe5 {[%emt 0:00:19]} Nxe5 {[%emt 0:00:
00]} 8. Qe2 {[%emt 0:00:27]} Qe7 {[%emt 0:00:51]} 9. Be3 {[%emt 0:00:51]} Nxd3+
{[%emt 0:24:13]} 10. Qxd3 {[%emt 0:00:04]} Qe6 {[%emt 0:12:15]} 11. Ne2 {
[%emt 0:05:18]} Bd6 {[%emt 0:00:19]} 12. Nd2 {[%emt 0:02:02]} O-O {[%emt 0:00:
00]} 13. Nd4 {[%emt 0:02:03]} Qe7 {[%emt 0:05:06]} 14. O-O-O {[%emt 0:07:45]}
Ne4 {[%emt 0:04:05]} 15. Rhe1 {[%emt 0:05:00]} Nc5 {[%emt 0:01:39]} 16. Qc2 {
[%emt 0:03:06]} Qf6 {[%emt 0:00:36]} 17. N2b3 {[%emt 0:09:48]} Na4 {[%emt 0:00:
00]} 18. Nb5 {[%emt 0:07:14]} a6 {[%emt 0:03:32]} 19. Nxd6 {[%emt 0:03:11]}
Qxd6 {[%emt 0:00:04]} 20. Rd4 {[%emt 0:11:32]} b5 {[%emt 0:01:24]} 21. Red1 {
[%emt 0:03:04]} Be6 {[%emt 0:07:50]} 22. Rh4 {[%emt 0:03:14]} f5 {[%emt 0:00:
00]} 23. Nd4 {[%emt 0:01:23]} Rac8 {[%emt 0:00:35]} 24. Nxe6 {[%emt 0:09:44]}
Qxe6 {[%emt 0:01:47]} 25. Kb1 {[%emt 0:01:06]} Nc5 {[%emt 0:06:01]} 26. Bxc5 {
[%emt 0:03:00]} Rxc5 {[%emt 0:00:03]} 27. Rhd4 {[%emt 0:00:46]} f4 {[%emt 0:00:
00]} 28. f3 {[%emt 0:02:27]} Rf5 {[%emt 0:00:31]} 29. Qd2 {[%emt 0:02:21]} Qg6
{[%emt 0:05:07]} 30. Ka1 {[%emt 0:00:47]} Qf6 {[%emt 0:00:39]} 31. Re1 {
[%emt 0:00:56]} h6 {[%emt 0:00:18]} 32. a3 {[%emt 0:01:34]} Kh7 {[%emt 0:00:15]
} 33. Qd3 {[%emt 0:02:33]} Qg6 {[%emt 0:00:47]} 34. Re2 {[%emt 0:01:39]} Kg8 {
[%emt 0:00:38]} 35. Rxf4 {[%emt 0:02:30]} Rf6 {[%emt 0:00:32]} 36. Qxg6 {
[%emt 0:04:34]} Rxg6 {[%emt 0:00:05]} 37. Kb1 {[%emt 0:00:40]} Rc7 {[%emt 0:00:
00]} 38. Kc2 {[%emt 0:00:34]} Rd6 {[%emt 0:00:29]} 39. Kd3 {[%emt 0:01:08]} g5
{[%emt 0:00:21]} 40. Rf5 {[%emt 0:01:56]} Rc4 {[%emt 0:00:17]} 41. b3 {[%emt 0:
00:00]} Rc7 {[%emt 0:04:22]} 42. Kd4 {[%emt 0:00:00]} a5 {[%emt 0:00:27]} 43.
Re8+ {[%emt 0:00:00]} Kg7 {[%emt 0:00:09]} 44. Rb8 {[%emt 0:00:00]} a4 {
[%emt 0:02:41]} 45. Rxb5 {[%emt 0:00:00]} axb3 {[%emt 0:00:05]} 46. Rxb3 {
[%emt 0:00:00]} Rc4+ {[%emt 0:00:17]} 47. Kd3 {[%emt 0:00:00]} Ra4 {[%emt 0:00:
00]} 48. g4 {[%emt 0:00:00]} Kg6 {[%emt 0:02:54]} 49. Rb5 {[%emt 0:00:00]} d4 {
[%emt 0:00:50]} 50. Ra5 {[%emt 0:00:00]} dxc3+ {[%emt 0:00:28]} 51. Kxc3 {
[%emt 0:00:00]} Rad4 {[%emt 0:00:58]} 52. Ra7 {[%emt 0:00:00]} Rd1 {[%emt 0:00:
00]} 53. a4 {[%emt 0:00:00]} Rc1+ {[%emt 0:06:31]} 54. Kb4 {[%emt 0:02:23]} Rd2
{[%emt 0:00:56]} 55. Ka5 {[%emt 0:00:56]} Ra1 {[%emt 0:01:59]} 56. Rb7 {
[%emt 0:01:20]} Rd8 {[%emt 0:01:04]} 57. Rc5 {[%emt 0:02:18]} Ra8+ {[%emt 0:00:
00]} 58. Kb6 {[%emt 0:00:04]} Kf6 {[%emt 0:07:39]} 59. a5 {[%emt 0:00:08]} Ra3
{[%emt 0:00:11]} 60. Rbc7 {[%emt 0:02:17]} Rb8+ {[%emt 0:00:40]} 61. Ka7 {
[%emt 0:00:15]} Rb2 {[%emt 0:01:27]} 62. Rf5+ {[%emt 0:00:21]} Kg6 {[%emt 0:00:
00]} 63. a6 {[%emt 0:00:36]} Rba2 {[%emt 0:00:25]} 64. Rc6+ {[%emt 0:00:05]}
Kg7 {[%emt 0:00:03]} 65. Rb5 {[%emt 0:00:26]} Rxf3 {[%emt 0:01:33]} 66. Rb7+ {
[%emt 0:00:18]} Rf7 {[%emt 0:00:05]} 67. Rxf7+ {[%emt 0:00:10]} Kxf7 {[%emt 0:
00:00]} 68. Kb7 {[%emt 0:00:05]} 1-0

[Event "44th Chess Olympiad Women 2022"]
[Site "Chennai"]
[Date "2022.08.08"]
[Round "10.4"]
[White "Danielian, Elina"]
[Black "Mammadzada, Gunay"]
[Result "0-1"]
[WhiteElo "2441"]
[BlackElo "2455"]
[Annotator "RC"]
[PlyCount "122"]
[EventDate "2022.??.??"]
[TimeControl "60"]

1. d4 {[%emt 0:00:03]} d5 {[%emt 0:00:06]} 2. c4 {[%emt 0:00:09]} c6 {[%emt 0:
00:00]} 3. Nc3 {[%emt 0:00:24]} Nf6 {[%emt 0:00:06]} 4. cxd5 {[%emt 0:00:20]}
cxd5 {[%emt 0:00:11]} 5. Bf4 {[%emt 0:00:10]} Nc6 {[%emt 0:02:59]} 6. e3 {
[%emt 0:00:35]} Bf5 {[%emt 0:03:11]} 7. Qb3 {[%emt 0:00:57]} Na5 {[%emt 0:00:
00]} 8. Qa4+ {[%emt 0:00:09]} Bd7 {[%emt 0:00:05]} 9. Qc2 {[%emt 0:00:04]} e6 {
[%emt 0:00:20]} 10. Bd3 {[%emt 0:00:38]} Rc8 {[%emt 0:06:55]} 11. Nf3 {[%emt 0:
00:00]} Nc4 {[%emt 0:06:35]} 12. O-O {[%emt 0:17:01]} Bb4 {[%emt 0:09:41]} 13.
Rac1 {[%emt 0:10:18]} O-O {[%emt 0:10:53]} 14. Ne5 {[%emt 0:17:44]} h6 {
[%emt 0:07:11]} 15. Qe2 {[%emt 0:02:35]} Nd6 {[%emt 0:10:31]} 16. Nb1 {[%emt 0:
00:00]} Qe7 {[%emt 0:05:35]} 17. a3 {[%emt 0:01:38]} Ba5 {[%emt 0:00:06]} 18.
h3 {[%emt 0:10:15]} a6 {[%emt 0:07:42]} 19. Nd2 {[%emt 0:04:16]} Ba4 {[%emt 0:
00:00]} 20. b4 {[%emt 0:04:23]} Bc7 {[%emt 0:02:00]} 21. Ng4 {[%emt 0:01:00]}
Nde8 {[%emt 0:08:31]} 22. Qf3 {[%emt 0:03:30]} Nxg4 {[%emt 0:00:51]} 23. hxg4 {
[%emt 0:00:32]} Ra8 {[%emt 0:03:43]} 24. Bxc7 {[%emt 0:02:34]} Nxc7 {[%emt 0:
00:00]} 25. Rfe1 {[%emt 0:00:18]} Bc6 {[%emt 0:05:57]} 26. Nb3 {[%emt 0:00:20]}
Nb5 {[%emt 0:00:43]} 27. a4 {[%emt 0:01:00]} Qxb4 {[%emt 0:01:35]} 28. axb5 {
[%emt 0:00:33]} Qxb3 {[%emt 0:00:02]} 29. bxc6 {[%emt 0:00:14]} Qxd3 {[%emt 0:
00:00]} 30. cxb7 {[%emt 0:00:14]} Ra7 {[%emt 0:01:49]} 31. Red1 {[%emt 0:00:51]
} Qa3 {[%emt 0:00:08]} 32. Rb1 {[%emt 0:00:37]} Rb8 {[%emt 0:00:08]} 33. g5 {
[%emt 0:00:20]} Raxb7 {[%emt 0:01:58]} 34. Rxb7 {[%emt 0:00:19]} Rxb7 {[%emt 0:
00:00]} 35. gxh6 {[%emt 0:00:11]} gxh6 {[%emt 0:00:57]} 36. g3 {[%emt 0:00:47]}
Qa2 {[%emt 0:00:46]} 37. Qg4+ {[%emt 0:00:29]} Kh7 {[%emt 0:00:23]} 38. Kg2 {
[%emt 0:01:14]} Qc2 {[%emt 0:03:20]} 39. Qh5 {[%emt 0:00:26]} Qe4+ {[%emt 0:00:
00]} 40. Kh2 {[%emt 0:00:34]} Kg7 {[%emt 0:00:06]} 41. Qe2 {[%emt 0:30:19]} a5
{[%emt 0:31:02]} 42. Qa2 {[%emt 0:00:00]} Qf3 {[%emt 0:00:00]} 43. Rf1 {
[%emt 0:00:00]} Ra7 {[%emt 0:00:00]} 44. Kg1 {[%emt 0:00:00]} h5 {[%emt 0:00:
00]} 45. Re1 {[%emt 0:00:00]} Qe4 {[%emt 0:00:00]} 46. Qe2 {[%emt 0:00:00]} Qg4
{[%emt 0:00:00]} 47. Qd3 {[%emt 0:00:00]} Qe4 {[%emt 0:00:00]} 48. Qd1 {
[%emt 0:00:00]} Kh6 {[%emt 0:00:00]} 49. f3 {[%emt 0:00:00]} Qg6 {[%emt 0:00:
00]} 50. Kg2 {[%emt 0:00:51]} a4 {[%emt 0:00:00]} 51. Re2 {[%emt 0:01:47]} h4 {
[%emt 0:00:00]} 52. g4 {[%emt 0:00:12]} f5 {[%emt 0:00:00]} 53. Qe1 {[%emt 0:
00:00]} Qg5 {[%emt 0:00:00]} 54. Kh3 {[%emt 0:00:21]} a3 {[%emt 0:00:00]} 55.
Ra2 {[%emt 0:01:13]} Kg6 {[%emt 0:00:00]} 56. Qc3 {[%emt 0:00:28]} Rf7 {
[%emt 0:01:37]} 57. gxf5+ {[%emt 0:02:19]} Rxf5 {[%emt 0:01:20]} 58. Rg2 {
[%emt 0:00:13]} Rxf3+ {[%emt 0:00:05]} 59. Kh2 {[%emt 0:00:01]} Rg3 {[%emt 0:
00:00]} 60. Qc2+ {[%emt 0:01:14]} Kh6 {[%emt 0:00:16]} 61. Rf2 {[%emt 0:00:16]}
Rh3+ {[%emt 0:00:14]} 0-1

[Event "44th Chess Olympiad Women 2022"]
[Site "Chennai"]
[Date "2022.08.08"]
[Round "10.4"]
[White "Mammadova, Gulnar"]
[Black "Gaboyan, Susanna"]
[Result "1-0"]
[WhiteElo "2380"]
[BlackElo "2270"]
[Annotator "RC"]
[PlyCount "63"]
[EventDate "2022.??.??"]
[TimeControl "60"]

1. e4 {[%emt 0:00:03]} c5 {[%emt 0:00:06]} 2. Nf3 {[%emt 0:00:10]} Nc6 {
[%emt 0:00:07]} 3. Bb5 {[%emt 0:00:09]} g6 {[%emt 0:00:15]} 4. Bxc6 {[%emt 0:
00:00]} bxc6 {[%emt 0:00:07]} 5. d4 {[%emt 0:00:15]} Bg7 {[%emt 0:05:01]} 6.
dxc5 {[%emt 0:00:16]} Qa5+ {[%emt 0:00:08]} 7. Nbd2 {[%emt 0:00:19]} Ba6 {
[%emt 0:02:15]} 8. Rb1 {[%emt 0:00:23]} Qxc5 {[%emt 0:12:15]} 9. b4 {[%emt 0:
00:00]} Qd6 {[%emt 0:04:45]} 10. c4 {[%emt 0:11:12]} Nf6 {[%emt 0:14:53]} 11.
O-O {[%emt 0:05:04]} Qc7 {[%emt 0:03:23]} 12. Re1 {[%emt 0:02:36]} d6 {[%emt 0:
00:00]} 13. Qc2 {[%emt 0:04:24]} O-O {[%emt 0:00:20]} 14. Nb3 {[%emt 0:01:50]}
Bc8 {[%emt 0:06:38]} 15. Nfd2 {[%emt 0:06:11]} Nh5 {[%emt 0:04:22]} 16. Bb2 {
[%emt 0:01:31]} e5 {[%emt 0:01:24]} 17. c5 {[%emt 0:05:27]} d5 {[%emt 0:00:23]}
18. Na5 {[%emt 0:01:05]} d4 {[%emt 0:05:25]} 19. Ndc4 {[%emt 0:02:59]} f5 {
[%emt 0:02:26]} 20. Nd6 {[%emt 0:00:40]} fxe4 {[%emt 0:00:58]} 21. Qxe4 {
[%emt 0:04:03]} Bd7 {[%emt 0:02:49]} 22. g3 {[%emt 0:05:22]} Nf6 {[%emt 0:00:
00]} 23. Qxe5 {[%emt 0:08:31]} Ng4 {[%emt 0:00:11]} 24. Qe2 {[%emt 0:00:25]}
Ne5 {[%emt 0:01:56]} 25. f4 {[%emt 0:09:52]} Bg4 {[%emt 0:00:34]} 26. Qa6 {
[%emt 0:01:58]} Nf3+ {[%emt 0:01:21]} 27. Kg2 {[%emt 0:00:35]} Nxe1+ {[%emt 0:
00:00]} 28. Rxe1 {[%emt 0:00:02]} g5 {[%emt 0:12:48]} 29. Nxc6 {[%emt 0:03:49]}
Bd7 {[%emt 0:06:06]} 30. Ne7+ {[%emt 0:00:37]} Kh8 {[%emt 0:00:15]} 31. Qc4 {
[%emt 0:00:20]} gxf4 {[%emt 0:01:29]} 32. Qg8+ {[%emt 0:00:23]} 1-0

[Event "44th Chess Olympiad Women 2022"]
[Site "Chennai"]
[Date "2022.08.08"]
[Round "10.4"]
[White "Sargsyan, Anna M."]
[Black "Beydullayeva, Govhar"]
[Result "0-1"]
[WhiteElo "2378"]
[BlackElo "2390"]
[Annotator "RC"]
[PlyCount "78"]
[EventDate "2022.??.??"]
[TimeControl "60"]

1. e4 {[%emt 0:00:04]} c5 {[%emt 0:02:07]} 2. Nf3 {[%emt 0:00:10]} d6 {[%emt 0:
00:00]} 3. d4 {[%emt 0:00:07]} cxd4 {[%emt 0:00:03]} 4. Nxd4 {[%emt 0:00:06]}
Nf6 {[%emt 0:00:03]} 5. Nc3 {[%emt 0:00:12]} a6 {[%emt 0:00:02]} 6. h3 {
[%emt 0:00:08]} e6 {[%emt 0:00:33]} 7. g4 {[%emt 0:00:07]} h6 {[%emt 0:00:03]}
8. Bg2 {[%emt 0:00:14]} Be7 {[%emt 0:02:01]} 9. Be3 {[%emt 0:00:32]} Qc7 {
[%emt 0:08:28]} 10. Qe2 {[%emt 0:04:49]} Nc6 {[%emt 0:00:47]} 11. O-O-O {
[%emt 0:00:31]} Nxd4 {[%emt 0:12:33]} 12. Bxd4 {[%emt 0:00:09]} e5 {[%emt 0:00:
00]} 13. Be3 {[%emt 0:00:25]} b5 {[%emt 0:00:20]} 14. f4 {[%emt 0:05:51]} Be6 {
[%emt 0:09:59]} 15. Nd5 {[%emt 0:05:46]} Bxd5 {[%emt 0:01:08]} 16. exd5 {
[%emt 0:00:05]} Rc8 {[%emt 0:06:40]} 17. Kb1 {[%emt 0:11:28]} Nd7 {[%emt 0:00:
00]} 18. h4 {[%emt 0:03:59]} Qc4 {[%emt 0:13:01]} 19. Qf2 {[%emt 0:06:52]} Nf6
{[%emt 0:02:34]} 20. Bf3 {[%emt 0:00:41]} exf4 {[%emt 0:08:32]} 21. Bb6 {
[%emt 0:00:57]} Nd7 {[%emt 0:03:48]} 22. Rd4 {[%emt 0:06:23]} Qxc2+ {[%emt 0:
00:00]} 23. Qxc2 {[%emt 0:00:02]} Rxc2 {[%emt 0:00:04]} 24. Kxc2 {[%emt 0:00:
00]} Nxb6 {[%emt 0:00:01]} 25. Re1 {[%emt 0:09:18]} Nc4 {[%emt 0:01:46]} 26. a4
{[%emt 0:03:24]} Ne5 {[%emt 0:01:44]} 27. Rxf4 {[%emt 0:02:05]} Bxh4 {[%emt 0:
00:00]} 28. Ra1 {[%emt 0:03:15]} Bg5 {[%emt 0:05:21]} 29. Re4 {[%emt 0:00:33]}
O-O {[%emt 0:00:08]} 30. Be2 {[%emt 0:00:09]} Rc8+ {[%emt 0:00:45]} 31. Kb3 {
[%emt 0:00:25]} Nd7 {[%emt 0:00:05]} 32. Ka2 {[%emt 0:12:31]} Nc5 {[%emt 0:00:
00]} 33. Rd4 {[%emt 0:00:50]} Nxa4 {[%emt 0:03:46]} 34. Kb3 {[%emt 0:12:41]}
Nc5+ {[%emt 0:01:32]} 35. Ka3 {[%emt 0:01:28]} Re8 {[%emt 0:00:19]} 36. Bd1 {
[%emt 0:01:11]} a5 {[%emt 0:02:21]} 37. Bc2 {[%emt 0:02:08]} Re2 {[%emt 0:00:
00]} 38. Bd1 {[%emt 0:00:33]} Re1 {[%emt 0:02:49]} 39. Ka2 {[%emt 0:02:55]} Be3
{[%emt 0:00:12]} 0-1

[Event "44th Chess Olympiad Women 2022"]
[Site "Chennai"]
[Date "2022.08.08"]
[Round "10.5"]
[White "Aulia, Medina Warda"]
[Black "Krush, Irina"]
[Result "0-1"]
[WhiteElo "2374"]
[BlackElo "2430"]
[Annotator "RC"]
[PlyCount "64"]
[EventDate "2022.??.??"]
[TimeControl "60"]

1. e4 {[%emt 0:00:04]} c5 {[%emt 0:00:07]} 2. Nf3 {[%emt 0:00:12]} d6 {[%emt 0:
00:00]} 3. g3 {[%emt 0:01:39]} g6 {[%emt 0:02:16]} 4. Bg2 {[%emt 0:00:29]} Bg7
{[%emt 0:00:09]} 5. c3 {[%emt 0:02:06]} Nf6 {[%emt 0:02:20]} 6. Qe2 {[%emt 0:
00:00]} Nc6 {[%emt 0:02:04]} 7. d3 {[%emt 0:02:59]} O-O {[%emt 0:01:51]} 8. O-O
{[%emt 0:00:20]} e5 {[%emt 0:04:57]} 9. Nbd2 {[%emt 0:03:57]} Re8 {[%emt 0:00:
00]} 10. h3 {[%emt 0:05:27]} d5 {[%emt 0:03:21]} 11. Rd1 {[%emt 0:07:50]} b6 {
[%emt 0:04:53]} 12. Nf1 {[%emt 0:02:07]} Ba6 {[%emt 0:06:37]} 13. Qc2 {[%emt 0:
00:00]} h6 {[%emt 0:10:35]} 14. exd5 {[%emt 0:04:03]} Nxd5 {[%emt 0:00:43]} 15.
Ne3 {[%emt 0:00:11]} Nde7 {[%emt 0:06:07]} 16. Ng4 {[%emt 0:05:14]} h5 {
[%emt 0:07:43]} 17. Nh6+ {[%emt 0:06:45]} Bxh6 {[%emt 0:00:33]} 18. Bxh6 {
[%emt 0:00:13]} Nf5 {[%emt 0:03:00]} 19. Bg5 {[%emt 0:06:03]} f6 {[%emt 0:00:
00]} 20. Bc1 {[%emt 0:03:48]} Qd7 {[%emt 0:03:23]} 21. g4 {[%emt 0:16:08]} hxg4
{[%emt 0:01:08]} 22. hxg4 {[%emt 0:02:38]} Nfe7 {[%emt 0:00:03]} 23. g5 {
[%emt 0:00:30]} f5 {[%emt 0:01:02]} 24. d4 {[%emt 0:00:57]} cxd4 {[%emt 0:00:
00]} 25. Qa4 {[%emt 0:03:50]} Be2 {[%emt 0:03:42]} 26. Re1 {[%emt 0:10:41]} d3
{[%emt 0:00:08]} 27. Be3 {[%emt 0:01:23]} Rad8 {[%emt 0:00:53]} 28. Qh4 {
[%emt 0:05:45]} f4 {[%emt 0:01:42]} 29. Bd2 {[%emt 0:03:33]} Nf5 {[%emt 0:00:
00]} 30. Qh2 {[%emt 0:01:02]} Re7 {[%emt 0:04:40]} 31. Nxe5 {[%emt 0:03:28]}
Nxe5 {[%emt 0:00:27]} 32. Qxf4 {[%emt 0:00:02]} Qd6 {[%emt 0:01:49]} 0-1

[Event "44th Chess Olympiad Women 2022"]
[Site "Chennai"]
[Date "2022.08.08"]
[Round "10.5"]
[White "Citra, Dewi Ardhiani Anast"]
[Black "Abrahamyan, Tatev"]
[Result "1/2-1/2"]
[WhiteElo "2257"]
[BlackElo "2291"]
[Annotator "NA RC"]
[PlyCount "48"]
[EventDate "2022.??.??"]
[TimeControl "60"]

1. d4 {[%emt 0:00:03]} e6 {[%emt 0:00:10]} 2. Bf4 {[%emt 0:00:49]} c5 {[%emt 0:
00:00]} 3. e3 {[%emt 0:01:21]} Qb6 {[%emt 0:00:13]} 4. Nc3 {[%emt 0:02:30]} Nf6
{[%emt 0:00:48]} 5. Nf3 {[%emt 0:05:32]} a6 {[%emt 0:01:12]} 6. a3 {[%emt 0:00:
00]} d5 {[%emt 0:05:20]} 7. dxc5 {[%emt 0:07:54]} Bxc5 {[%emt 0:05:37]} 8. Bd3
{[%emt 0:00:29]} Bd7 {[%emt 0:07:28]} 9. Rb1 {[%emt 0:12:40]} O-O {[%emt 0:00:
00]} 10. O-O {[%emt 0:03:31]} Be7 {[%emt 0:07:34]} 11. Ne5 {[%emt 0:01:48]} Nc6
{[%emt 0:02:41]} 12. Qf3 {[%emt 0:02:08]} Nxe5 {[%emt 0:10:35]} 13. Bxe5 {
[%emt 0:00:07]} Bc6 {[%emt 0:02:18]} 14. Qh3 {[%emt 0:08:39]} g6 {[%emt 0:00:
00]} 15. Qh6 {[%emt 0:03:54]} Rfe8 {[%emt 0:05:28]} 16. Bd4 {[%emt 0:13:45]}
Qd8 {[%emt 0:02:24]} 17. f4 {[%emt 0:04:07]} Bf8 {[%emt 0:00:59]} 18. Qh3 {
[%emt 0:00:21]} Bg7 {[%emt 0:02:46]} 19. Ne2 {[%emt 0:02:34]} Rc8 {[%emt 0:00:
00]} 20. Rf2 {[%emt 0:00:46]} Qd7 {[%emt 0:05:44]} 21. Qh4 {[%emt 0:06:55]} Qe7
{[%emt 0:01:20]} 22. Qh3 {[%emt 0:00:23]} Qd7 {[%emt 0:00:11]} 23. Qh4 {
[%emt 0:00:58]} Qe7 {[%emt 0:00:09]} 24. Qh3 {[%emt 0:00:47]} Qd7 {[%emt 0:00:
00]} 1/2-1/2

[Event "44th Chess Olympiad Women 2022"]
[Site "Chennai"]
[Date "2022.08.08"]
[Round "10.5"]
[White "Tokhirjonova, Gulrukhbegim"]
[Black "Sukandar, Irine Kharisma"]
[Result "1/2-1/2"]
[WhiteElo "2329"]
[BlackElo "2373"]
[Annotator "RC"]
[PlyCount "111"]
[EventDate "2022.??.??"]
[TimeControl "60"]

1. d4 {[%emt 0:01:32]} Nf6 {[%emt 0:00:16]} 2. c4 {[%emt 0:00:17]} e6 {[%emt 0:
00:00]} 3. Nc3 {[%emt 0:00:25]} Bb4 {[%emt 0:00:25]} 4. a3 {[%emt 0:00:40]}
Bxc3+ {[%emt 0:00:20]} 5. bxc3 {[%emt 0:00:12]} c5 {[%emt 0:04:19]} 6. f3 {
[%emt 0:01:06]} Nc6 {[%emt 0:09:56]} 7. e4 {[%emt 0:04:43]} d6 {[%emt 0:05:30]}
8. Ne2 {[%emt 0:02:27]} O-O {[%emt 0:02:09]} 9. Ng3 {[%emt 0:02:13]} b6 {
[%emt 0:01:36]} 10. Be2 {[%emt 0:12:59]} Ba6 {[%emt 0:03:09]} 11. O-O {[%emt 0:
00:00]} Na5 {[%emt 0:05:31]} 12. Bg5 {[%emt 0:04:44]} h6 {[%emt 0:02:02]} 13.
Bh4 {[%emt 0:04:17]} g5 {[%emt 0:03:00]} 14. Bxg5 {[%emt 0:00:42]} hxg5 {
[%emt 0:00:07]} 15. f4 {[%emt 0:00:10]} Nh7 {[%emt 0:09:59]} 16. Ra2 {[%emt 0:
00:00]} cxd4 {[%emt 0:05:43]} 17. cxd4 {[%emt 0:00:31]} Rc8 {[%emt 0:00:33]}
18. Bd3 {[%emt 0:02:01]} Bxc4 {[%emt 0:02:57]} 19. Raf2 {[%emt 0:00:26]} Bxd3 {
[%emt 0:05:26]} 20. Qxd3 {[%emt 0:00:13]} Rc4 {[%emt 0:09:27]} 21. fxg5 {
[%emt 0:08:06]} Qxg5 {[%emt 0:05:05]} 22. Ne2 {[%emt 0:02:32]} Kh8 {[%emt 0:00:
00]} 23. Rxf7 {[%emt 0:03:56]} Rxf7 {[%emt 0:00:08]} 24. Rxf7 {[%emt 0:00:05]}
Rc8 {[%emt 0:02:08]} 25. Rxa7 {[%emt 0:04:36]} Nc4 {[%emt 0:01:21]} 26. e5 {
[%emt 0:05:06]} Qe3+ {[%emt 0:05:31]} 27. Qxe3 {[%emt 0:00:13]} Nxe3 {[%emt 0:
00:00]} 28. exd6 {[%emt 0:03:22]} Rd8 {[%emt 0:01:39]} 29. Nf4 {[%emt 0:00:48]}
Nf8 {[%emt 0:01:43]} 30. d7 {[%emt 0:09:55]} Nd5 {[%emt 0:00:50]} 31. Nxd5 {
[%emt 0:03:49]} exd5 {[%emt 0:00:02]} 32. Rc7 {[%emt 0:00:06]} Rxd7 {[%emt 0:
00:00]} 33. Rc6 {[%emt 0:00:05]} b5 {[%emt 0:00:37]} 34. Rb6 {[%emt 0:00:04]}
Kg7 {[%emt 0:00:07]} 35. Kf2 {[%emt 0:00:53]} Kf7 {[%emt 0:00:56]} 36. Rxb5 {
[%emt 0:00:07]} Ne6 {[%emt 0:00:38]} 37. Ke3 {[%emt 0:00:11]} Nd8 {[%emt 0:00:
00]} 38. a4 {[%emt 0:00:45]} Re7+ {[%emt 0:00:30]} 39. Kd3 {[%emt 0:02:20]} Ke6
{[%emt 0:00:30]} 40. a5 {[%emt 0:00:23]} Nc6 {[%emt 0:00:23]} 41. a6 {[%emt 0:
00:00]} Rh7 {[%emt 0:06:15]} 42. Rb6 {[%emt 0:00:00]} Kd6 {[%emt 0:00:36]} 43.
Ke3 {[%emt 0:00:00]} Rxh2 {[%emt 0:02:09]} 44. g4 {[%emt 0:00:00]} Rh3+ {
[%emt 0:05:33]} 45. Kf2 {[%emt 0:00:00]} Rh7 {[%emt 0:12:48]} 46. Kg3 {[%emt 0:
00:00]} Ra7 {[%emt 0:00:56]} 47. Kf4 {[%emt 0:00:00]} Kc7 {[%emt 0:00:57]} 48.
Rb5 {[%emt 0:00:00]} Kd6 {[%emt 0:00:28]} 49. Rb6 {[%emt 0:00:00]} Kc7 {
[%emt 0:00:05]} 50. Rb5 {[%emt 0:00:00]} Ne7 {[%emt 0:04:54]} 51. Rb7+ {
[%emt 0:08:26]} Rxb7 {[%emt 0:00:05]} 52. axb7 {[%emt 0:00:03]} Kxb7 {[%emt 0:
00:00]} 53. Ke5 {[%emt 0:00:02]} Kc6 {[%emt 0:00:09]} 54. g5 {[%emt 0:00:04]}
Kd7 {[%emt 0:01:09]} 55. g6 {[%emt 0:00:10]} Nxg6+ {[%emt 0:00:43]} 56. Kxd5 {
[%emt 0:00:03]} 1/2-1/2